Workbook

Sheet 教室分配原则
A1: 学院代码 | B1: 学生学院 | C1: 19级班级 | D1: 20级班级 | E1: 21级班级 | F1: 22级班级 | G1: 学院班级总数 | H1: 所属校区 | I1: 校区班级总数 | J1: 分配教室数量 | K1: 取整后教室数量
A2: 101 | B2: 先进制造工程学院 | C2: 12 | D2: 12 | E2: 16 | F2: 19 | G2: =SUM(C2:F2) -> 59 | H2: 二区 | I2: 226 | J2: =65/226*G2 -> 16.96902655 | K2: 17
A3: 102 | B3: 人工智能与大数据学院 | C3: 10 | D3: 9 | E3: 14 | F3: 18 | G3: =SUM(C3:F3) -> 51 | H3: 二区 | J3: =65/226*G3 -> 14.66814159 | K3: 15
A4: 103 | B4: 城市建设与交通学院 | C4: 4 | D4: 4 | E4: 8 | F4: 9 | G4: 25 | H4: 二区 | J4: 7.190265487 | K4: 7
A5: 104 | B5: 生物食品与环境学院 | C5: 6 | D5: 5 | E5: 6 | F5: 8 | G5: 25 | H5: 二区 | J5: 7.190265487 | K5: 7
A6: 105 | B6: 能源材料与化工学院 | C6: 6 | D6: 7 | E6: 6 | F6: 8 | G6: 27 | H6: 二区 | J6: 7.765486726 | K6: 8
A7: 106 | B7: 设计学院 | C7: 9 | D7: 9 | E7: 10 | F7: 11 | G7: 39 | H7: 二区 | J7: 11.21681416 | K7: 11
K8: =SUM(K2:K7) -> 65
A9: 107 | B9: 经济与管理学院 | C9: 24 | D9: 25 | E9: 25 | F9: 27 | G9: 101 | H9: 一区 | I9: 177 | J9: =64/177*G9 -> 36.51977401 | K9: 35
A10: 108 | B10: 语言文化与传媒学院 | C10: 3 | D10: 3 | E10: 5 | F10: 7 | G10: 18 | H10: 一区 | J10: =64/177*G10 -> 6.508474576 | K10: 7
A11: 109 | B11: 教育学院 | C11: 4 | D11: 4 | E11: 6 | F11: 7 | G11: 21 | H11: 一区 | J11: 7.593220339 | K11: 8
A12: 110 | B12: 外国语学院 | C12: 4 | D12: 4 | E12: 6 | F12: 7 | G12: 21 | H12: 一区 | J12: 7.593220339 | K12: 8
A13: 111 | B13: 旅游与会展学院 | C13: 4 | D13: 4 | E13: 4 | F13: 4 | G13: 16 | H13: 一区 | J13: 5.785310734 | K13: 6
K14: 64
A15: 校区 | B15: 教室总数 | C15: 参与分配教室总数 | D15: 备注
A16: 一区 | B16: 68 | C16: 64 | D16: 物流专业2间 柬埔寨班2间
A17: 二区 | B17: 67 | C17: 65 | D17: 35#401、35#406研究生处使用
A19: 备注：1、所有所属学生学院的公共课程（思政、数学、物理等）优先使用该学院的教室 2、交叉使用教室各学院自行协调
A23: 一区多媒体教室现状 | B23: 阶梯教室 | C23: 6 | D23: 大教室120 | E23: 22 | F23: 中教室 | G23: 6 | H23: 小教室 | I23: 30 | J23: 柬埔寨班 | K23: 2 | L23: 中德物流 | M23: 2
B28: 学院 | C28: 班级数 | E28: 阶梯教室 | F28: 实际分配教室 | G28: 大教室120 | H28: 实际分配教室 | I28: 中教室 | J28: 实际分配教室 | K28: 小教室 | L28: 实际分配教室
B29: 经济与管理学院 | C29: =G9 -> 101 | E29: =6*C29/177 -> 3.423728814 | F29: 3 | G29: =22*C29/177 -> 12.55367232 | H29: 12 | I29: =5*C29/177 -> 2.853107345 | J29: 2
B30: 语言文化与传媒学院 | C30: 18 | E30: =6*C30/177 -> 0.6101694915 | F30: 1 | G30: =22*C30/177 -> 2.237288136 | H30: 3 | I30: =5*C30/177 -> 0.5084745763 | J30: 1
B31: 教育学院 | C31: 21 | E31: 0.7118644068 | F31: 1 | G31: 2.610169492 | H31: 3 | I31: 0.593220339 | J31: 1
B32: 外国语学院 | C32: 21 | E32: 0.7118644068 | F32: 0 | G32: 2.610169492 | H32: 1 | I32: 0.593220339 | J32: 1
B33: 旅游与会展学院 | C33: 16 | E33: 0.5423728814 | F33: 1 | G33: 1.988700565 | H33: 3 | I33: 0.4519774011 | J33: 1
C34: =SUM(C29:C33) -> 177 | F34: =SUM(F29:F33) -> 6 | H34: =SUM(H29:H33) -> 22 | J34: =SUM(J29:J33) -> 6
B37: 按班级比例更改多媒体教室分配数1
B38: =B28 -> 学院 | C38: 班级数 | D38: 0 | E38: 阶梯教室 | F38: 实际分配教室 | G38: 大教室120 | H38: 实际分配教室 | I38: 中教室 | J38: 实际分配教室 | K38: 小教室
B39: =B29 -> 经济与管理学院 | C39: 101 | D39: 0 | E39: 3.423728814 | F39: =F29 -> 3 | G39: 12.55367232 | H39: 13 | I39: =I29 -> 2.853107345 | J39: 3 | K39: =K29 -> 0
B40: =B30 -> 语言文化与传媒学院 | C40: 18 | D40: 0 | E40: 0.6101694915 | F40: 1 | G40: 2.237288136 | H40: 3 | I40: 0.5084745763 | J40: 1 | K40: 0
B41: =B31 -> 教育学院 | C41: 21 | D41: 0 | E41: 0.7118644068 | F41: 1 | G41: 2.610169492 | H41: 3 | I41: 0.593220339 | J41: 1 | K41: 0
B42: =B32 -> 外国语学院 | C42: 21 | D42: 0 | E42: 0.7118644068 | F42: 0 | G42: 2.610169492 | H42: 1 | I42: 0.593220339 | J42: 1 | K42: 0
B43: =B33 -> 旅游与会展学院 | C43: 16 | D43: 0 | E43: 0.5423728814 | F43: 1 | G43: 1.988700565 | H43: 2 | I43: =I33 -> 0.4519774011 | J43: 0 | K43: =K33 -> 0
B44: =B34 -> 0 | C44: 177 | D44: 0 | E44: 0 | F44: 6 | G44: 0 | H44: 22 | I44: 0 | J44: 6 | K44: 0
B48: 按班级比例更改多媒体教室分配数2
B49: =B38 -> 学院 | C49: 班级数 | D49: 0 | E49: 阶梯教室 | F49: 实际分配教室 | G49: 大教室120 | H49: 实际分配教室 | I49: 中教室 | J49: 实际分配教室 | K49: 小教室
B50: =B39 -> 经济与管理学院 | C50: 101 | D50: 0 | E50: 3.423728814 | F50: 3 | G50: 12.55367232 | H50: 13 | I50: 2.853107345 | J50: 4 | K50: 0
B51: =B40 -> 语言文化与传媒学院 | C51: 18 | D51: 0 | E51: 0.6101694915 | F51: 1 | G51: 2.237288136 | H51: 3 | I51: 0.5084745763 | J51: 1 | K51: 0
B52: =B41 -> 教育学院 | C52: 21 | D52: 0 | E52: 0.7118644068 | F52: 1 | G52: 2.610169492 | H52: 3 | I52: 0.593220339 | J52: 1 | K52: 0
B53: =B42 -> 外国语学院 | C53: 21 | D53: 0 | E53: 0.7118644068 | F53: 0 | G53: 2.610169492 | H53: 1 | I53: 0.593220339 | J53: 0 | K53: 0
B54: =B43 -> 旅游与会展学院 | C54: 16 | D54: 0 | E54: 0.5423728814 | F54: 1 | G54: 1.988700565 | H54: 2 | I54: 0.4519774011 | J54: 0 | K54: 0
B55: =B44 -> 0 | C55: 177 | D55: 0 | E55: 0 | F55: 6 | G55: 0 | H55: 22 | I55: 0 | J55: 6 | K55: 0

Sheet 二区教室分配方案
A1: 教室编号 | B1: 教室名称 | C1: 座位数 | D1: 教室类别 | E1: 使用部门
A2: JX235206 | B2: 35-206 | C2: 110 | D2: 多媒体教室 | E2: 城市建设与交通学院
A3: JX235304 | B3: 35-304 | C3: 56 | D3: 多媒体教室 | E3: 城市建设与交通学院
A4: JX237101 | B4: 37-101 | C4: 111 | D4: 多媒体教室 | E4: 城市建设与交通学院
A5: JX237105 | B5: 37-105 | C5: 119 | D5: 多媒体教室 | E5: 城市建设与交通学院
A6: JX237203 | B6: 37-203 | C6: 117 | D6: 多媒体教室 | E6: 城市建设与交通学院
A7: JX237208 | B7: 37-208 | C7: 62 | D7: 多媒体教室 | E7: 城市建设与交通学院
A8: JX2411JT | B8: 41-3JT | C8: 182 | D8: 多媒体教室 | E8: 城市建设与交通学院
A9: JX235105 | B9: 35-105 | C9: 110 | D9: 多媒体教室 | E9: 能源材料与化工学院
A10: JX235412 | B10: 35-412 | C10: 110 | D10: 多媒体教室 | E10: 能源材料与化工学院
A11: JX2371JT | B11: 37-1JT | C11: 182 | D11: 多媒体教室 | E11: 能源材料与化工学院
A12: JX2372JT | B12: 37-2JT | C12: 182 | D12: 多媒体教室 | E12: 能源材料与化工学院
A13: JX292201 | B13: 生-201 | C13: 93 | D13: 多媒体教室 | E13: 能源材料与化工学院
A14: JX292203 | B14: 生-203 | C14: 94 | D14: 多媒体教室 | E14: 能源材料与化工学院
A15: JX292210 | B15: 生-210 | C15: 57 | D15: 多媒体教室 | E15: 能源材料与化工学院
A16: JX2912JT | B16: 生化-2JT | C16: 240 | D16: 多媒体教室 | E16: 能源材料与化工学院
A17: JX235409 | B17: 35-409 | C17: 110 | D17: 多媒体教室 | E17: 人工智能与大数据学院
A18: JX2362JT | B18: 36-2JT | C18: 182 | D18: 多媒体教室 | E18: 人工智能与大数据学院
A19: JX235203 | B19: 35-203 | C19: 110 | D19: 多媒体教室 | E19: 人工智能与大数据学院
A20: JX235204 | B20: 35-204 | C20: 56 | D20: 多媒体教室 | E20: 人工智能与大数据学院
A21: JX235205 | B21: 35-205 | C21: 110 | D21: 多媒体教室 | E21: 人工智能与大数据学院
A22: JX235212 | B22: 35-212 | C22: 110 | D22: 多媒体教室 | E22: 人工智能与大数据学院
A23: JX236105 | B23: 36-105 | C23: 111 | D23: 多媒体教室 | E23: 人工智能与大数据学院
A24: JX236201 | B24: 36-201 | C24: 113 | D24: 多媒体教室 | E24: 人工智能与大数据学院
A25: JX236204 | B25: 36-204 | C25: 62 | D25: 多媒体教室 | E25: 人工智能与大数据学院
A26: JX236210 | B26: 36-210 | C26: 101 | D26: 多媒体教室 | E26: 人工智能与大数据学院
A27: JX2363JT | B27: 36-3JT | C27: 182 | D27: 多媒体教室 | E27: 人工智能与大数据学院
A28: JX237201 | B28: 37-201 | C28: 111 | D28: 多媒体教室 | E28: 人工智能与大数据学院
A29: JX237206 | B29: 37-206 | C29: 101 | D29: 多媒体教室 | E29: 人工智能与大数据学院
A30: JX237212 | B30: 37-212 | C30: 62 | D30: 多媒体教室 | E30: 人工智能与大数据学院
A31: JX2373JT | B31: 37-3JT | C31: 182 | D31: 多媒体教室 | E31: 人工智能与大数据学院
A32: JX235306 | B32: 35-306 | C32: 110 | D32: 多媒体教室 | E32: 设计学院
A33: JX235308 | B33: 35-308 | C33: 110 | D33: 多媒体教室 | E33: 设计学院
A34: JX235404 | B34: 35-404 | C34: 56 | D34: 多媒体教室 | E34: 设计学院
A35: JX235405 | B35: 35-405 | C35: 47 | D35: 多媒体教室 | E35: 设计学院
A36: JX235410 | B36: 35-410 | C36: 49 | D36: 多媒体教室 | E36: 设计学院
A37: JX235414 | B37: 35-414 | C37: 56 | D37: 多媒体教室 | E37: 设计学院
A38: JX237106 | B38: 37-106 | C38: 107 | D38: 多媒体教室 | E38: 设计学院
A39: JX2412JT | B39: 41-2JT | C39: 182 | D39: 多媒体教室 | E39: 设计学院
A40: JX237103 | B40: 37-103 | C40: 117 | D40: 多媒体教室 | E40: 设计学院
A41: JX237108 | B41: 37-108 | C41: 107 | D41: 多媒体教室 | E41: 设计学院
A42: JX237205 | B42: 37-205 | C42: 113 | D42: 多媒体教室 | E42: 设计学院
A43: JX235403 | B43: 35-403 | C43: 110 | D43: 多媒体教室 | E43: 生物食品与环境学院
A44: JX292207 | B44: 生-207 | C44: 90 | D44: 多媒体教室 | E44: 生物食品与环境学院
A45: JX235107 | B45: 35-107 | C45: 110 | D45: 多媒体教室 | E45: 生物食品与环境学院
A46: JX235303 | B46: 35-303 | C46: 110 | D46: 多媒体教室 | E46: 生物食品与环境学院
A47: JX292209 | B47: 生-209 | C47: 103 | D47: 多媒体教室 | E47: 生物食品与环境学院
A48: JX292212 | B48: 生-212 | C48: 54 | D48: 多媒体教室 | E48: 生物食品与环境学院
A49: JX2911JT | B49: 生化-1JT | C49: 240 | D49: 多媒体教室 | E49: 生物食品与环境学院
A50: JX235112 | B50: 35-112 | C50: 110 | D50: 多媒体教室 | E50: 先进制造工程学院
A51: JX235114 | B51: 35-114 | C51: 56 | D51: 多媒体教室 | E51: 先进制造工程学院
A52: JX235201 | B52: 35-201 | C52: 110 | D52: 多媒体教室 | E52: 先进制造工程学院
A53: JX235208 | B53: 35-208 | C53: 110 | D53: 多媒体教室 | E53: 先进制造工程学院
A54: JX236101 | B54: 36-101 | C54: 119 | D54: 多媒体教室 | E54: 先进制造工程学院
A55: JX236103 | B55: 36-103 | C55: 117 | D55: 多媒体教室 | E55: 先进制造工程学院
A56: JX236104 | B56: 36-104 | C56: 62 | D56: 多媒体教室 | E56: 先进制造工程学院
A57: JX236106 | B57: 36-106 | C57: 107 | D57: 多媒体教室 | E57: 先进制造工程学院
A58: JX236108 | B58: 36-108 | C58: 107 | D58: 多媒体教室 | E58: 先进制造工程学院
A59: JX2361JT | B59: 36-1JT | C59: 182 | D59: 多媒体教室 | E59: 先进制造工程学院
A60: JX236205 | B60: 36-205 | C60: 111 | D60: 多媒体教室 | E60: 先进制造工程学院
A61: JX236212 | B61: 36-212 | C61: 50 | D61: 多媒体教室 | E61: 先进制造工程学院
A62: JX2382JT | B62: 38-2JT | C62: 182 | D62: 多媒体教室 | E62: 先进制造工程学院
A63: JX235207 | B63: 35-207 | C63: 110 | D63: 多媒体教室 | E63: 先进制造工程学院
A64: JX235210 | B64: 35-210 | C64: 49 | D64: 多媒体教室 | E64: 先进制造工程学院
A65: JX236203 | B65: 36-203 | C65: 117 | D65: 多媒体教室 | E65: 先进制造工程学院
A66: JX2381JT | B66: 38-3JT | C66: 182 | D66: 多媒体教室 | E66: 先进制造工程学院
A67: JX235401 | B67: 35-401 | C67: 110 | D67: 多媒体教室 | E67: 研究生处
A68: JX235406 | B68: 35-406 | C68: 110 | D68: 多媒体教室 | E68: 研究生处

Sheet 一区教室分配方案
A1: 教室编号 | B1: 教室名称 | C1: 座位数 | D1: 教室类别 | E1: 使用部门
A2: 03513 | B2: 8-501 | C2: 40 | D2: 多媒体教室 | E2: 柬埔寨班
A3: 03514 | B3: 8-502 | C3: 40 | D3: 多媒体教室 | E3: 柬埔寨班
A4: 1301 | B4: 3-101 | C4: 184 | D4: 多媒体教室 | E4: 教育学院
A5: 1308 | B5: 3-301 | C5: 128 | D5: 多媒体教室 | E5: 教育学院
A6: 1309 | B6: 3-302 | C6: 64 | D6: 多媒体教室 | E6: 教育学院
A7: 1310 | B7: 3-303 | C7: 83 | D7: 多媒体教室 | E7: 教育学院
A8: 1312 | B8: 3-305 | C8: 128 | D8: 多媒体教室 | E8: 教育学院
A9: 1314 | B9: 3-307 | C9: 128 | D9: 多媒体教室 | E9: 教育学院
A10: 03494 | B10: 8-102 | C10: 40 | D10: 多媒体教室 | E10: 教育学院
A11: 03495 | B11: 8-103 | C11: 40 | D11: 多媒体教室 | E11: 教育学院
A12: 1101 | B12: 1-101 | C12: 184 | D12: 多媒体教室 | E12: 经济与管理学院
A13: 1906 | B13: 11-103 | C13: 120 | D13: 多媒体教室 | E13: 经济与管理学院
A14: 1108 | B14: 1-301 | C14: 128 | D14: 多媒体教室 | E14: 经济与管理学院
A15: 1109 | B15: 1-302 | C15: 64 | D15: 多媒体教室 | E15: 经济与管理学院
A16: 1110 | B16: 1-303 | C16: 83 | D16: 多媒体教室 | E16: 经济与管理学院
A17: 1112 | B17: 1-305 | C17: 128 | D17: 多媒体教室 | E17: 经济与管理学院
A18: 1114 | B18: 1-307 | C18: 128 | D18: 多媒体教室 | E18: 经济与管理学院
A19: 1401 | B19: 4-101 | C19: 128 | D19: 多媒体教室 | E19: 经济与管理学院
A20: 1407 | B20: 4-107 | C20: 184 | D20: 多媒体教室 | E20: 经济与管理学院
A21: 1408 | B21: 4-301 | C21: 128 | D21: 多媒体教室 | E21: 经济与管理学院
A22: 1409 | B22: 4-302 | C22: 64 | D22: 多媒体教室 | E22: 经济与管理学院
A23: 1410 | B23: 4-303 | C23: 128 | D23: 多媒体教室 | E23: 经济与管理学院
A24: 1412 | B24: 4-305 | C24: 83 | D24: 多媒体教室 | E24: 经济与管理学院
A25: 1414 | B25: 4-307 | C25: 121 | D25: 多媒体教室 | E25: 经济与管理学院
A26: 1601 | B26: 6-101 | C26: 128 | D26: 多媒体教室 | E26: 经济与管理学院
A27: 1603 | B27: 6-103 | C27: 128 | D27: 多媒体教室 | E27: 经济与管理学院
A28: 1607 | B28: 6-301 | C28: 128 | D28: 多媒体教室 | E28: 经济与管理学院
A29: 1608 | B29: 6-302 | C29: 60 | D29: 多媒体教室 | E29: 经济与管理学院
A30: 1609 | B30: 6-303 | C30: 128 | D30: 多媒体教室 | E30: 经济与管理学院
A31: 1613 | B31: 6-307 | C31: 128 | D31: 多媒体教室 | E31: 经济与管理学院
A32: 03496 | B32: 8-104 | C32: 40 | D32: 多媒体教室 | E32: 经济与管理学院
A33: 03497 | B33: 8-105 | C33: 40 | D33: 多媒体教室 | E33: 经济与管理学院
A34: j03401 | B34: 8-106 | C34: 40 | D34: 多媒体教室 | E34: 经济与管理学院
A35: 03509 | B35: 8-402 | C35: 40 | D35: 多媒体教室 | E35: 经济与管理学院
A36: 03510 | B36: 8-403 | C36: 40 | D36: 多媒体教室 | E36: 经济与管理学院
A37: j03406 | B37: 8-406 | C37: 40 | D37: 多媒体教室 | E37: 经济与管理学院
A38: 03515 | B38: 8-503 | C38: 40 | D38: 多媒体教室 | E38: 经济与管理学院
A39: 03516 | B39: 8-504 | C39: 40 | D39: 多媒体教室 | E39: 经济与管理学院
A40: 03517 | B40: 8-505 | C40: 40 | D40: 多媒体教室 | E40: 经济与管理学院
A41: 03521 | B41: 8-506 | C41: 40 | D41: 多媒体教室 | E41: 经济与管理学院
A42: 1215 | B42: 2-305 | C42: 83 | D42: 多媒体教室 | E42: 经济与管理学院
A43: 1217 | B43: 2-307 | C43: 128 | D43: 多媒体教室 | E43: 经济与管理学院
A44: 1103 | B44: 1-103 | C44: 85 | D44: 多媒体教室 | E44: 经济与管理学院
A45: 03501 | B45: 8-204 | C45: 40 | D45: 多媒体教室 | E45: 旅游与会展学院
A46: 03502 | B46: 8-205 | C46: 40 | D46: 多媒体教室 | E46: 旅游与会展学院
A47: j03402 | B47: 8-206 | C47: 40 | D47: 多媒体教室 | E47: 旅游与会展学院
A48: 1207 | B48: 2-107 | C48: 184 | D48: 多媒体教室 | E48: 旅游与会展学院
A49: 1211 | B49: 2-301 | C49: 128 | D49: 多媒体教室 | E49: 旅游与会展学院
A50: 1212 | B50: 2-302 | C50: 64 | D50: 多媒体教室 | E50: 旅游与会展学院
A51: 1213 | B51: 2-303 | C51: 128 | D51: 多媒体教室 | E51: 旅游与会展学院
A52: 03499 | B52: 8-202 | C52: 40 | D52: 多媒体教室 | E52: 外国语学院
A53: 03500 | B53: 8-203 | C53: 40 | D53: 多媒体教室 | E53: 外国语学院
A54: 1105 | B54: 1-105 | C54: 129 | D54: 多媒体教室 | E54: 外国语学院
A55: 03498 | B55: 8-201 | C55: 40 | D55: 多媒体教室 | E55: 外国语学院
A56: 03505 | B56: 8-303 | C56: 40 | D56: 多媒体教室 | E56: 外国语学院
A57: 03506 | B57: 8-304 | C57: 40 | D57: 多媒体教室 | E57: 外国语学院
A58: 03507 | B58: 8-305 | C58: 40 | D58: 多媒体教室 | E58: 外国语学院
A59: j03403 | B59: 8-306 | C59: 40 | D59: 多媒体教室 | E59: 外国语学院
A60: 03508 | B60: 8-401 | C60: 40 | D60: 多媒体教室 | E60: 外国语学院
A61: 1107 | B61: 1-107 | C61: 129 | D61: 多媒体教室 | E61: 语言文化与传媒学院
A62: 1501 | B62: 5-101 | C62: 248 | D62: 多媒体教室 | E62: 语言文化与传媒学院
A63: 1513 | B63: 5-305 | C63: 83 | D63: 多媒体教室 | E63: 语言文化与传媒学院
A64: 1514 | B64: 5-306 | C64: 64 | D64: 多媒体教室 | E64: 语言文化与传媒学院
A65: 1515 | B65: 5-307 | C65: 128 | D65: 多媒体教室 | E65: 语言文化与传媒学院
A66: 1517 | B66: 5-309 | C66: 128 | D66: 多媒体教室 | E66: 语言文化与传媒学院
A67: 03493 | B67: 8-101 | C67: 40 | D67: 多媒体教室 | E67: 语言文化与传媒学院
A68: 03511 | B68: 8-404 | C68: 40 | D68: 多媒体教室 | E68: 中外合作物流专业
A69: 03512 | B69: 8-405 | C69: 40 | D69: 多媒体教室 | E69: 中外合作物流专业
